bitfinex/quotes_SOLUSD_20240920
["timestamp","ask_amount","ask_price","bid_price","bid_amount"]
[1726795738360,4.5e-05,142.15,142.14,153.953354]
[1726795738667,4.5e-05,142.15,142.14,167.26870149]
[1726795742665,4.5e-05,142.15,142.14,174.32170149]
[1726795743374,4.5e-05,142.15,142.14,167.26870149]
[1726795743873,4.5e-05,142.15,142.14,197.26870149]
[1726795744246,4.5e-05,142.15,142.14,204.32170149]
[1726795744573,4.5e-05,142.15,142.14,197.26870149]
[1726795745463,4.5e-05,142.15,142.14,167.26870149]
[1726795745775,4.5e-05,142.15,142.14,174.32170149]
[1726795746957,4.5e-05,142.15,142.14,204.32170149]
[1726795748044,4.5e-05,142.15,142.14,183.953354]
[1726795748369,4.5e-05,142.15,142.14,167.26870149]
[1726795749746,4.5e-05,142.15,142.14,174.32170149]
[1726795751278,4.5e-05,142.15,142.14,167.26870149]
[1726795759570,4.5e-05,142.15,142.14,174.32170149]
[1726795763065,4.5e-05,142.15,142.14,130.17647]
[1726795763561,4.5e-05,142.15,142.14,74.6235]
[1726795764884,4.5e-05,142.15,142.14,74.99997]
[1726795768984,4.5e-05,142.15,142.12,57.0359]
[1726795769286,4.5e-05,142.15,142.12,7.0359]
[1726795769501,16.5943,142.14,142.11,24.6277]
[1726795769665,16.5943,142.14,142.11,17.5911]
[1726795769984,23.6296,142.14,142.1,7.0371]
[1726795770287,23.6296,142.14,142.08,67.5951]
[1726795770288,7.0358,142.13,142.08,67.5951]
[1726795771161,7.0358,142.13,142.08,24.6332]
[1726795771365,7.0358,142.13,142.08,74.6332]
[1726795773378,7.0358,142.13,142.09,7.0376]
[1726795776186,7.0364,142.12,142.08,24.6333]
[1726795776374,6.1294,142.11,142.08,24.6333]
[1726795776893,6.1294,142.11,142.09,7.0376]
[1726795777493,23.178,142.14,142.1,7.0372]
[1726795777675,23.178,142.14,142.1,17.5924]
[1726795778278,23.178,142.14,142.11,7.0366]
[1726795779192,22.178,142.14,142.11,7.0366]
[1726795782599,22.178,142.14,142.1,24.6295]
[1726795785488,22.178,142.14,142.11,7.0367]
[1726795786594,22.178,142.14,142.12,7.0363]
[1726795792800,22.178,142.14,142.1,67.5924]
[1726795793004,22.178,142.14,142.11,7.28758]
[1726795800193,22.178,142.14,142.11,0.25098]
[1726795800395,6.549,142.17,142.13,0.25098]
[1726795800717,6.549,142.17,142.15,7.0344]
[1726795802300,15.2951,142.18,142.15,7.0344]
[1726795802503,6.481,142.2,142.15,0.37647]
[1726795803206,6.481,142.2,142.18,7.0332]
[1726795803520,6.481,142.2,142.16,24.6193]
[1726795807422,6.481,142.2,142.17,7.0335]
[1726795808126,6.481,142.2,142.18,7.0332]
[1726795809899,6.481,142.2,142.17,0.12549]
[1726795809900,0.4059598,142.21,142.17,0.25098]
[1726795810104,0.4059598,142.21,142.2,7.0323]
[1726795810305,0.4059598,142.21,142.2,7.40877]
[1726795810504,0.4059598,142.21,142.2,57.40877]
[1726795813228,0.4059598,142.21,142.2,7.0323]
[1726795813436,0.4059598,142.21,142.2,57.40877]
[1726795814140,0.4059598,142.21,142.2,7.0323]
[1726795815437,0.4059598,142.21,142.2,7.40877]
[1726795815819,0.4059598,142.21,142.2,57.40877]
[1726795818425,0.4059598,142.21,142.2,7.0323]
[1726795819321,0.4059598,142.21,142.2,7.40877]
[1726795820039,0.4059598,142.21,142.2,57.40877]
[1726795823744,0.4059598,142.21,142.2,105.88581749]
[1726795824129,0.4059598,142.21,142.2,129.66270149]
[1726795824533,0.4059598,142.21,142.2,116.347354]
[1726795825349,0.4059598,142.21,142.2,57.40877]
[1726795829748,0.4059598,142.21,142.2,81.185654]
[1726795836956,0.4059598,142.21,142.2,101.55400149]
[1726795837255,0.4059598,142.21,142.2,94.50100149]
[1726795838062,0.252445,142.24,142.2,94.50100149]
[1726795838063,0.252445,142.24,142.23,130.01318]
[1726795838358,0.252445,142.24,142.23,162.62330542]
[1726795838559,0.252445,142.24,142.23,74.6079]
[1726795840064,0.252445,142.24,142.23,74.98437]
[1726795844557,0.252445,142.24,142.23,88.29971749]
[1726795844965,0.252445,142.24,142.23,119.12960149]
[1726795846167,0.252445,142.24,142.23,175.93865291]
[1726795847169,0.252445,142.24,142.23,182.99165291]
[1726795847752,0.252445,142.24,142.23,212.99165291]
[1726795848662,0.3143427,142.28,142.27,74.601]
[1726795848878,0.3143427,142.28,142.27,153.898754]
[1726795849058,0.3143427,142.28,142.27,175.92185291]
[1726795850157,0.3143427,142.28,142.27,182.97485291]
[1726795854162,0.0915721,142.3,142.29,64.0809]
[1726795854473,0.0915721,142.3,142.29,114.49660149]
[1726795855377,0.0915721,142.3,142.29,121.54960149]
[1726795855973,0.0915721,142.3,142.29,114.49660149]
[1726795856178,0.0915721,142.3,142.29,123.20435291]
[1726795856776,0.0915721,142.3,142.29,130.25735291]
[1726795857773,0.255914,142.33,142.32,98.745754]
[1726795857964,0.255914,142.33,142.32,112.06110149]
[1726795858573,0.255914,142.33,142.32,132.06110149]
[1726795859461,0.255914,142.33,142.32,139.11410149]
[1726795859783,0.255914,142.33,142.32,132.06110149]
[1726795862577,0.255914,142.33,142.32,107.90774749]
[1726795862783,0.255914,142.33,142.3,57.027]
[1726795862966,0.255914,142.33,142.29,24.5968]
[1726795863169,7.0269,142.31,142.27,7.0288]
[1726795863362,2.01237798,142.33,142.29,7.0277]
[1726795863363,0.255914,142.33,142.29,7.0277]
[1726795863564,0.255914,142.33,142.29,57.0277]
[1726795865171,13.174614,142.34,142.29,57.0277]
[1726795865577,12.674614,142.34,142.29,57.0277]
[1726795866998,5.648814,142.34,142.3,7.0273]
[1726795867175,12.674314,142.34,142.3,7.0273]
[1726795867493,12.674314,142.34,142.29,57.0278]
[1726795868603,7.026,142.33,142.29,57.0278]
[1726795870185,7.0264,142.32,142.28,17.82118]
[1726795870585,7.0272,142.31,142.26,7.0292]
[1726795870882,7.0274,142.3,142.26,7.0292]
[1726795871993,7.027,142.31,142.26,7.0292]
[1726795872600,7.0275,142.3,142.26,7.0292]
[1726795872984,7.027,142.31,142.25,67.5744]
[1726795873302,7.0274,142.3,142.26,7.0292]
[1726795873605,23.776884,142.33,142.26,7.0292]
[1726795874297,7.027,142.31,142.26,7.0292]
[1726795874603,7.027,142.31,142.27,7.0288]
[1726795875293,7.027,142.31,142.26,7.28018]
[1726795877397,1.75691469,142.32,142.25,74.6041]
[1726795877601,15.07,142.3,142.25,74.6041]
[1726795878189,22.0975,142.3,142.25,74.6041]
[1726795879097,22.0975,142.3,142.26,7.0292]
[1726795879279,15.07,142.3,142.27,7.0287]
[1726795882283,15.07,142.3,142.28,7.0283]
[1726795883593,5.648814,142.34,142.29,7.0278]
[1726795883594,21.874014,142.34,142.29,7.0278]
[1726795883784,28.899514,142.34,142.3,7.0272]
[1726795884922,28.899514,142.34,142.29,24.597]
[1726795887009,21.874014,142.34,142.31,7.0264]
[1726795887583,7.0245,142.36,142.32,7.026]
[1726795887806,29.2538,142.37,142.33,7.0258]
[1726795891112,29.2538,142.37,142.32,7.0262]
[1726795891304,23.98620637,142.37,142.28,17.5702]
[1726795891605,7.026,142.33,142.28,17.5702]
[1726795891814,7.026,142.33,142.28,24.5984]
[1726795892589,7.026,142.33,142.29,7.0277]
[1726795893715,7.026,142.33,142.28,17.5702]
[1726795893716,7.026,142.33,142.28,24.5985]
[1726795894211,7.0264,142.32,142.28,24.5985]
[1726795894412,7.0274,142.3,142.25,74.6034]
[1726795894796,7.0279,142.29,142.25,74.6034]
[1726795894993,15.6733,142.31,142.26,7.0293]
[1726795895194,22.7005,142.31,142.26,7.0293]
[1726795896611,7.0276,142.3,142.25,74.6036]
[1726795897090,7.0276,142.3,142.26,7.0292]
[1726795899199,15.6733,142.31,142.22,7.3165538]
[1726795899200,23.776884,142.28,142.22,24.8726538]
[1726795899403,7.0292,142.27,142.22,24.8726538]
[1726795899594,7.0297,142.26,142.22,17.8414538]
[1726795900396,7.0289,142.27,142.22,24.8723538]
[1726795902012,7.0289,142.27,142.23,7.0307]
[1726795902201,21.7703,142.31,142.24,67.95167]
[1726795902514,21.7703,142.31,142.25,7.0294]
[1726795903312,7.028,142.29,142.25,7.0294]
[1726795905011,7.0285,142.28,142.24,24.6054]
[1726795905423,7.028,142.29,142.24,24.6054]
[1726795905711,7.0275,142.3,142.25,7.0297]
[1726795905907,7.0275,142.3,142.26,7.0292]
[1726795912614,7.027,142.31,142.27,7.0288]
[1726795914409,7.0267,142.32,142.28,7.0283]
[1726795914728,15.3666,142.34,142.3,7.0273]
[1726795914729,22.3924,142.34,142.3,7.0273]
[1726795914926,7.0258,142.34,142.3,7.0273]
[1726795915807,7.026,142.33,142.29,7.0277]
[1726795917111,7.0789759,142.33,142.29,7.0277]
[1726795918135,0.0529759,142.33,142.3,7.0272]
[1726795920028,0.0529759,142.33,142.29,7.15319]
[1726795921743,7.0269,142.31,142.28,17.5705]
[1726795921930,7.0274,142.3,142.26,7.0289]
[1726795922738,23.776884,142.31,142.23,50.1992408]
[1726795922926,7.0274,142.3,142.25,7.0295]
[1726795923236,7.0274,142.3,142.26,7.0293]
[1726795927644,7.0292,142.27,142.23,0.1992408]
[1726795927825,7.0292,142.27,142.23,7.2299408]
[1726795928923,7.0282,142.29,142.25,7.0297]
[1726795930035,7.0282,142.29,142.24,7.0302]
[1726795930820,7.0284,142.28,142.24,7.0302]
[1726795936342,7.0284,142.28,142.23,74.8066408]
[1726795937056,7.0284,142.28,142.24,7.0302]
[1726795938439,7.0275,142.3,142.25,17.5744]
[1726795939239,7.0275,142.3,142.26,7.0293]
[1726795941136,22.8967759,142.33,142.26,7.0293]
[1726795941343,0.0529759,142.33,142.27,50.0]
[1726795941544,0.0529759,142.33,142.3,7.0272]
[1726795942660,0.0529759,142.33,142.3,13.44083749]
[1726795942956,0.0529759,142.33,142.32,7.0264]
[1726795945872,0.0529759,142.33,142.29,17.5692]
[1726795946352,0.0529759,142.33,142.29,24.5966]
[1726795947460,0.0529759,142.33,142.29,67.5692]
[1726795947657,0.0529759,142.33,142.3,7.0273]
[1726795948665,0.0529759,142.33,142.29,67.5692]
[1726795948666,0.0529759,142.33,142.29,24.597]
[1726795948864,1.80965676,142.33,142.29,24.597]
[1726795949040,7.0265,142.32,142.28,7.0283]
[1726795949660,7.0789759,142.33,142.28,7.0283]
[1726795951859,8.78324515,142.32,142.28,7.0283]
[1726795953060,7.0264,142.32,142.28,7.0283]
[1726795953456,7.0788759,142.33,142.29,7.0278]
[1726795953659,0.0529759,142.33,142.29,7.0278]
[1726795956069,7.027,142.31,142.28,17.5704]
[1726795956270,7.027,142.31,142.26,7.029]
[1726795957173,1.80966218,142.33,142.27,17.5718]
[1726795957470,0.0529759,142.33,142.27,17.5718]
[1726795957859,7.0267,142.32,142.28,7.0282]
[1726795958174,0.0529759,142.33,142.28,0.12549]
[1726795958474,0.0529759,142.33,142.29,7.0278]
[1726795960665,0.0529759,142.33,142.3,7.0273]
[1726795961078,0.0529759,142.33,142.3,13.31534749]
[1726795961264,0.0529759,142.33,142.32,7.0264]
[1726795961474,0.0529759,142.33,142.32,7.15189]
[1726795961783,0.0529759,142.33,142.32,7.40287]
[1726795962671,0.0529759,142.33,142.32,34.45587]
[1726795965385,0.0529759,142.33,142.32,27.40287]
[1726795965557,0.0529759,142.33,142.32,7.15189]
[1726795966476,0.0529759,142.33,142.32,14.20489]
[1726795966667,0.0529759,142.33,142.32,14.45587]
[1726795967891,0.0529759,142.33,142.32,34.45587]
[1726795969963,0.0529759,142.33,142.32,78.99247793]
[1726795972358,0.0529759,142.33,142.32,55.21559393]
[1726795974193,0.0529759,142.33,142.32,78.99247793]
[1726795981365,0.0529759,142.33,142.32,78.97547793]
[1726795981563,0.0529759,142.33,142.32,71.93947793]
[1726795982090,0.0529759,142.33,142.32,64.46008774]
[1726795982472,0.0529759,142.33,142.32,71.49608774]
[1726795982991,0.0529759,142.33,142.32,101.49608774]
[1726795984490,0.0529759,142.33,142.32,71.49608774]
[1726795985483,0.0529759,142.33,142.32,51.179754]
[1726795985680,0.0529759,142.33,142.32,64.46008774]
[1726795986997,0.0529759,142.33,142.32,71.49608774]
[1726795989079,0.0529759,142.33,142.32,101.49608774]
[1726795990079,0.0529759,142.33,142.32,94.46008774]
[1726795990290,0.4056865,142.38,142.37,24.83468]
[1726795990487,0.4056865,142.38,142.37,38.11501374]
[1726795990888,0.4056865,142.38,142.37,38.24050374]
[1726795992596,0.4056865,142.38,142.37,58.24050374]
[1726795993784,0.4056865,142.38,142.37,65.27650374]
[1726795994182,0.4056865,142.38,142.37,58.24050374]
[1726795994788,0.4056865,142.38,142.37,65.27650374]
[1726795996784,0.4056865,142.38,142.37,82.01738774]
[1726795997592,0.4056865,142.38,142.37,89.05338774]
[1726796000597,0.4056865,142.38,142.37,119.05338774]
[1726796003081,0.4056865,142.38,142.37,74.5837]
[1726796003281,0.4056865,142.38,142.37,64.90003374]
[1726796003508,0.4056865,142.38,142.37,57.86403374]
[1726796004183,0.4056865,142.38,142.37,64.90003374]
[1726796004489,0.4056865,142.38,142.37,65.27650374]
[1726796004685,0.4056865,142.38,142.37,58.24050374]
[1726796005086,0.4056865,142.38,142.37,89.05338774]
[1726796005289,0.4056865,142.38,142.37,82.01738774]
[1726796005485,0.4056865,142.38,142.37,90.24847249]
[1726796005898,0.4056865,142.38,142.37,120.24847249]
[1726796006904,0.4056865,142.38,142.37,97.28447249]
[1726796007393,0.4056865,142.38,142.37,68.737054]
[1726796007600,0.4056865,142.38,142.37,82.01738774]
[1726796008293,0.4056865,142.38,142.37,89.05338774]
[1726796008693,0.4056865,142.38,142.37,82.01738774]
[1726796009400,0.4056865,142.38,142.37,97.28447249]
[1726796010009,0.4056865,142.38,142.37,127.28447249]
[1726796011204,0.2522167,142.42,142.41,109.6866]
[1726796011511,0.2522167,142.42,142.41,143.34340374]
[1726796011815,1.67e-05,142.42,142.41,143.34340374]
[1726796011984,0.4056865,142.47,142.46,44.94467]
[1726796012185,0.4056865,142.47,142.46,58.22500374]
[1726796012408,0.4056865,142.47,142.46,93.32250374]
[1726796012702,0.4056865,142.47,142.46,58.22500374]
[1726796012907,0.4056865,142.47,142.46,44.94467]
[1726796013114,0.4056865,142.47,142.46,58.22500374]
[1726796013487,0.4056865,142.47,142.46,82.00188774]
[1726796014311,0.4056865,142.47,142.46,89.03788774]
[1726796014891,0.4056865,142.47,142.46,58.22500374]
[1726796016097,0.4056865,142.47,142.46,65.26100374]
[1726796019922,0.4056865,142.47,142.46,68.721554]
[1726796020127,0.4056865,142.47,142.46,82.00188774]
[1726796020295,0.4056865,142.47,142.46,58.22500374]
[1726796020613,0.4056865,142.47,142.46,65.26100374]
[1726796021389,0.4056865,142.47,142.46,89.03788774]
[1726796026223,0.4056865,142.47,142.46,82.00188774]
[1726796026628,0.4056865,142.47,142.46,89.03788774]
[1726796029311,0.4056865,142.47,142.46,58.22500374]
[1726796029622,0.4056865,142.47,142.46,65.26100374]
[1726796030326,0.4056865,142.47,142.46,82.00188774]
[1726796030528,0.4056865,142.47,142.46,89.03788774]
[1726796031652,0.4056865,142.47,142.46,98.40727672]
[1726796031933,0.2522167,142.51,142.5,94.93777]
[1726796032109,0.2522167,142.51,142.5,108.21810374]
[1726796032911,0.2522167,142.51,142.5,115.25410374]
[1726796033111,16.5367144,142.55,142.53,17.5399]
[1726796033112,16.2226,142.55,142.53,17.5399]
[1726796033340,0.3177467,142.54,142.53,17.5399]
[1726796034429,0.3177467,142.54,142.53,24.5555]
[1726796039654,2.071661,142.54,142.5,37.5431]
[1726796039864,2.071661,142.54,142.51,7.0166]
[1726796040755,2.071661,142.54,142.52,7.0165]
[1726796040756,0.3177467,142.54,142.52,7.0165]
[1726796040950,8.04299574,142.53,142.49,7.0177]
[1726796041163,15.6068,142.52,142.48,7.0183]
[1726796041365,1.75449426,142.51,142.48,7.0183]
[1726796042063,1.75449426,142.51,142.49,7.0178]
[1726796042256,15.6068,142.52,142.5,7.0174]
[1726796047063,6.2889,142.53,142.51,17.66759]
[1726796047268,0.3177467,142.54,142.53,7.016]
[1726796048371,0.5311217,142.54,142.53,7.016]
[1726796056061,0.5311217,142.54,142.53,57.26698]
[1726796056253,0.5311217,142.54,142.53,70.42182374]
[1726796056659,0.5311217,142.54,142.53,77.45782374]
[1726796056955,0.5311217,142.54,142.53,64.17749]
[1726796057377,0.5311217,142.54,142.53,64.30298]
[1726796058056,0.5311217,142.54,142.53,64.42847]
[1726796059679,0.5311217,142.54,142.53,70.67280374]
[1726796061980,0.5311217,142.54,142.53,77.70880374]
[1726796062183,0.255849,142.59,142.53,77.70880374]
[1726796062184,7.21e-05,142.56,142.55,125.172064]
[1726796062363,0.255849,142.59,142.58,112.33258]
[1726796062563,0.255849,142.59,142.58,143.14691374]
[1726796062765,0.255849,142.59,142.58,150.18291374]
[1726796063274,0.255849,142.59,142.58,173.95979774]
[1726796063472,0.255849,142.59,142.58,174.08528774]
[1726796064178,4.9e-05,142.59,142.58,174.08528774]
[1726796064563,4.9e-05,142.59,142.58,176.41867672]
[1726796064764,0.4093188,142.64,142.63,74.5389]
[1726796064968,0.4093188,142.64,142.63,95.23170374]
[1726796065168,0.4093188,142.64,142.63,88.19570374]
[1726796065862,0.4093188,142.64,142.63,95.23170374]
[1726796066186,1.88e-05,142.64,142.63,88.19570374]
[1726796066372,1.88e-05,142.64,142.63,111.97258774]
[1726796066985,1.88e-05,142.64,142.63,119.00858774]
[1726796067460,1.88e-05,142.64,142.63,88.19570374]
[1726796068179,1.88e-05,142.64,142.63,81.95137]
[1726796068764,1.88e-05,142.64,142.63,74.5389]
[1726796068963,1.88e-05,142.64,142.63,31.5749]
[1726796069188,1.88e-05,142.64,142.63,81.5749]
[1726796070466,1.88e-05,142.64,142.63,81.82588]
[1726796070873,1.88e-05,142.64,142.63,81.95137]
[1726796071789,1.88e-05,142.64,142.63,17.5278]
[1726796071983,1.88e-05,142.64,142.62,7.0115]
[1726796072886,1.88e-05,142.64,142.6,17.5308]
[1726796073093,1.75290091,142.64,142.57,67.5347]
[1726796073791,7.0112,142.63,142.58,7.0135]
[1726796074175,7.0112,142.63,142.59,7.013]
[1726796074489,7.0107188,142.64,142.59,7.013]
[1726796075091,1.88e-05,142.64,142.59,17.5316]
[1726796075390,1.88e-05,142.64,142.59,67.5316]
[1726796075567,1.88e-05,142.64,142.6,7.0122]
[1726796075768,1.88e-05,142.64,142.59,67.5316]
[1726796075969,1.88e-05,142.64,142.6,7.0125]
[1726796077073,7.0107188,142.64,142.6,7.0125]
[1726796080299,7.0112,142.63,142.59,74.5446]
[1726796080671,7.0108188,142.64,142.59,74.5446]
[1726796080880,7.0111,142.63,142.59,24.5446]
[1726796083774,1.75301661,142.62,142.56,17.5361]
[1726796084899,7.0122,142.61,142.56,24.5503]
[1726796085292,7.0122,142.61,142.56,17.5361]
[1726796086298,7.0122,142.61,142.57,7.014]
[1726796089201,23.5094,142.59,142.54,7.0154]
[1726796089971,23.5094,142.59,142.55,7.015]
[1726796090576,16.496,142.59,142.55,7.015]
[1726796091699,16.496,142.59,142.55,7.10956495]
[1726796092201,16.496,142.59,142.56,7.0145]
[1726796092593,16.496,142.59,142.55,7.10946495]
[1726796092987,16.496,142.59,142.55,0.09456495]
[1726796093186,1.75360899,142.58,142.55,0.09456495]
[1726796093500,8.7680889,142.57,142.55,0.09456495]
[1726796094078,7.0142,142.57,142.55,0.09456495]
[1726796094283,16.496,142.59,142.55,0.09456495]
[1726796094591,7.0142,142.57,142.55,0.09456495]
[1726796094904,16.496,142.59,142.55,0.09456495]
[1726796094905,7.0137,142.58,142.55,0.09456495]
[1726796095802,7.0142,142.57,142.55,0.09456495]
[1726796097705,7.0145,142.56,142.55,0.09456495]
[1726796101803,7.0142,142.57,142.55,0.09456495]
[1726796102010,16.496,142.59,142.55,0.09456495]
[1726796102211,23.5095,142.59,142.55,0.09456495]
[1726796104381,16.496,142.59,142.55,0.09456495]
[1726796104580,16.496,142.59,142.55,7.10946495]
[1726796104804,16.496,142.59,142.56,7.0145]
[1726796105007,13.2273,142.6,142.56,7.0145]
[1726796105311,6.2144,142.6,142.57,7.014]
[1726796105495,7.0121,142.61,142.57,7.014]
[1726796106213,7.0121,142.61,142.56,24.5503]
[1726796107410,23.776884,142.62,142.55,7.10946495]
[1726796107612,1.7534177,142.6,142.55,7.10946495]
[1726796107985,7.0118,142.62,142.55,67.63156495]
[1726796108186,7.0118,142.62,142.58,7.0135]
[1726796108399,29.4822,142.63,142.58,7.0135]
[1726796108894,29.4822,142.63,142.59,7.0131]
[1726796110114,16.2757,142.63,142.6,7.0124]
[1726796110809,7.0107,142.64,142.6,7.0124]
[1726796111312,7.0107,142.64,142.59,24.5453]
[1726796111914,7.0107,142.64,142.6,7.0125]
[1726796113108,7.0102,142.65,142.6,7.0125]
[1726796113287,7.0107,142.64,142.6,7.0125]
[1726796114620,7.0103,142.65,142.6,7.0125]
[1726796114807,7.0103,142.65,142.61,7.012]
[1726796115319,0.16849175,142.66,142.61,7.012]
[1726796115320,7.17819175,142.66,142.62,7.0115]
[1726796115507,0.16849175,142.66,142.63,7.011]
[1726796116025,0.16849175,142.66,142.64,7.0105]
[1726796116317,0.16849175,142.66,142.65,7.0101]
[1726796117599,0.16849175,142.66,142.64,7.0105]
[1726796119116,0.16849175,142.66,142.63,24.5383]
[1726796119315,0.16849175,142.66,142.64,7.0106]
[1726796119520,0.16849175,142.66,142.63,24.5383]
[1726796120209,0.16849175,142.66,142.64,7.0105]
[1726796121901,0.16849175,142.66,142.65,7.0101]
[1726796122999,0.16849175,142.66,142.65,7.13559]
[1726796125313,0.16849175,142.66,142.65,14.42257]
[1726796127824,0.16849175,142.66,142.65,49.47337]
[1726796131131,0.16849175,142.66,142.65,73.250254]
[1726796131338,9.175e-05,142.66,142.65,117.09664298]
[1726796131642,0.32495725,142.71,142.7,74.5269]
[1726796131807,0.32495725,142.71,142.7,74.90337]
[1726796132011,0.32495725,142.71,142.7,81.93937]
[1726796132630,0.32495725,142.71,142.7,74.90337]
[1726796132840,0.32495725,142.71,142.7,74.77788]
[1726796133315,0.32495725,142.71,142.7,74.90337]
[1726796133632,0.32495725,142.71,142.7,150.58344298]
[1726796133844,0.32495725,142.71,142.7,180.58344298]
[1726796134026,0.32495725,142.71,142.7,187.61944298]
[1726796135533,0.32495725,142.71,142.7,136.80655898]
[1726796135711,0.32495725,142.71,142.7,156.80655898]
[1726796136736,0.32495725,142.71,142.7,126.80655898]
[1726796137538,0.32495725,142.71,142.7,83.89628898]
[1726796137725,0.32495725,142.71,142.7,74.5269]
[1726796141640,0.32495725,142.71,142.7,74.90337]
[1726796141841,0.32495725,142.71,142.7,84.27275898]
[1726796142135,0.32495725,142.71,142.7,108.04964298]
[1726796142311,0.32495725,142.71,142.7,128.04964298]
[1726796142646,0.32495725,142.71,142.7,135.08564298]
[1726796144238,0.09157631,142.73,142.72,84.41917]
[1726796144826,0.09157631,142.73,142.72,77.38317]
[1726796145319,0.09157631,142.73,142.72,84.41917]
[1726796145514,0.09157631,142.73,142.72,57.38317]
[1726796150349,0.09157631,142.73,142.72,64.41917]
[1726796151921,0.09157631,142.73,142.72,57.38317]
[1726796152347,7.004,142.78,142.74,7.0057]
[1726796152653,0.2516049,142.77,142.74,7.0057]
[1726796156143,0.2516049,142.77,142.75,7.0051]
[1726796156446,0.2516049,142.77,142.76,7.0047]
[1726796156651,0.2516049,142.77,142.75,24.5178]
[1726796157529,7.0051,142.76,142.72,17.5159]
[1726796157949,7.0056,142.75,142.71,7.007]
[1726796158729,7.0048,142.76,142.71,7.007]
[1726796159226,7.2560049,142.77,142.72,7.0066]
[1726796159551,0.2516049,142.77,142.72,50.0]
[1726796159847,0.2516049,142.77,142.73,17.5151]
[1726796160023,0.2516049,142.77,142.7,50.0]
[1726796160427,7.0051,142.76,142.72,7.0067]
[1726796160845,7.0051,142.76,142.71,7.007]
[1726796162049,7.0053,142.75,142.71,7.007]
[1726796163452,7.0048,142.76,142.71,7.007]
[1726796163675,7.0048,142.76,142.72,7.0066]
[1726796164373,7.0047,142.76,142.72,74.5224]
[1726796164678,0.2516049,142.77,142.72,17.5161]
[1726796164973,7.0048,142.76,142.72,17.5161]
[1726796165349,7.0053,142.75,142.72,17.5161]
[1726796165547,7.0048,142.76,142.72,17.5161]
[1726796165977,7.0048,142.76,142.72,24.5227]
[1726796166147,7.0048,142.76,142.72,17.5161]
[1726796166352,7.0048,142.76,142.72,24.5227]
[1726796167673,7.2560049,142.77,142.72,24.5227]
[1726796168088,7.0048,142.76,142.72,24.5227]
[1726796168560,7.26466231,142.76,142.72,24.5227]
[1726796168757,0.25986231,142.76,142.72,24.5227]
[1726796168960,7.26476231,142.76,142.72,24.5227]
[1726796169155,7.0062,142.73,142.69,24.5274]
[1726796169490,0.25986231,142.73,142.7,7.0076]
[1726796170680,0.25986231,142.73,142.66,22.3485]
[1726796170681,0.25986231,142.73,142.66,67.5236]
[1726796170871,8.04132672,142.73,142.66,17.5236]
[1726796171077,8.04132672,142.73,142.64,50.0]
[1726796171078,7.0077,142.7,142.64,50.0]
[1726796171263,7.0077,142.7,142.65,7.01]
[1726796172176,7.0083,142.69,142.65,7.01]
[1726796174276,7.0071,142.72,142.67,7.0091]
[1726796174465,13.29586231,142.73,142.68,7.0084]
[1726796174869,13.29586231,142.73,142.69,7.008]
[1726796175076,13.29586231,142.73,142.68,7.0085]
[1726796176181,13.29586231,142.73,142.69,7.0081]
[1726796179067,6.28966231,142.73,142.69,7.0081]
[1726796179993,13.29586231,142.73,142.69,7.0081]
[1726796182091,7.0071,142.72,142.67,24.5311]
[1726796182509,7.0082,142.69,142.66,50.0]
[1726796182787,1.75202317,142.72,142.65,0.12549]
[1726796182971,7.0082,142.69,142.65,0.12549]
[1726796183174,1.75202317,142.72,142.65,0.12549]
[1726796183372,1.75202317,142.72,142.64,17.5258]
[1726796183981,1.25202317,142.72,142.64,17.5258]
[1726796184364,6.28966231,142.73,142.64,17.5258]
[1726796184664,7.54188873,142.73,142.64,17.5258]
[1726796185697,7.0084,142.69,142.65,7.0101]
[1726796187094,24.44722697,142.68,142.62,0.0833189]
[1726796187295,22.695,142.68,142.62,0.0833189]
[1726796187592,7.01,142.66,142.62,0.0833189]
[1726796188182,7.0102,142.65,142.62,0.0833189]
[1726796188492,7.0106,142.64,142.62,0.0833189]
[1726796189998,8.7638906,142.63,142.62,0.0833189]
[1726796190174,7.0111,142.63,142.62,0.0833189]
[1726796190770,17.5236,142.67,142.62,0.0833189]
[1726796190993,22.695,142.68,142.62,0.0833189]
[1726796191297,7.01,142.66,142.62,0.0833189]